Cogmind - Beta 14 @@@ ROGUE MODE // 2024.08.25 @ 14:20:01 Player: Plexion Result: Destroyed by L-61 Swordsman with Power Sword Performance ------------- Evolutions (6) 3000 Regions Visited (12) 2400 Robots Destroyed (122) 610 Value Destroyed (4466) 4466 Prototype IDs (33) 660 Alien Tech Used (0) 0 Bonus (4825) 4825 TOTAL SCORE: 15961 Bonus ------- High Alert Combat Kills 95 Follower Combat Kills 2374 Registered with UFD 300 Met Warlord at Base 500 MAIN.C Attacked Warlord 500 Warlord Defense Kills 2566 Friendly Fire -1510 Cogmind --------- Core Integrity 0/1150 Matter 254/300 Energy 99/100 System Corruption 8% Temperature Cool (0) Movement Core (50) Location -4/Armory Parts ------- > --- POWER (2) -------- (None) > --- PROPULSION (5) --- (None) > --- UTILITY (8) ------ Advanced Hacking Suite > --- WEAPON (4) ------- (None) > --- INVENTORY (5) ---- Amulet of Y3-NDR Vortex Shotgun (50) Vortex Shotgun (50) Vortex Rail (38) Botcube Peak State ------------ > --- POWER ------------ Light Antimatter Reactor Meta Core > --- PROPULSION ------- Heavy Treads Enhanced Flexi-carbon Leg Enhanced Flexi-carbon Leg Arachnoskeleton Experimental Myomer Leg > --- UTILITY ---------- Advanced Heat Sink High-capacity Storage Unit Improved Salvage Targeting Computer Enhanced Scrap Shield Advanced Shield Generator Master Drone Bay Amulet of Y3-NDR > --- WEAPON ----------- Plasma Storm > --- INVENTORY -------- Vortex Chain Reactor Armored Medium Treads Combat Linear Gravjet Seismic Detector Makeshift Transmission Jammer Layered Heavy Armor Plating Advanced Hacking Suite Advanced Hacking Suite Vortex Shotgun Vortex Shotgun Vortex Rail Vortex Driver Rocket Launcher Improved Remote Datajack Heavy Hammer Botcube [Rating: 173] Favorites ----------- Power Angular Momentum Engine Engine Angular Momentum Engine Power Core Meta Core Reactor Light Antimatter Reactor Propulsion Light Treads Treads Light Treads Leg Enhanced Flexi-carbon Leg Wheel Wheel Utility High-capacity Storage Unit Device Advanced Heat Sink Storage High-capacity Storage Unit Processor Improved Salvage Targeting Computer Hackware Advanced Hacking Suite Protection Makeshift Light Armor Plating Weapon Subdweller Beam Cannon Energy Gun Wave Gun Energy Cannon Subdweller Beam Cannon Ballistic Gun Assault Rifle Ballistic Cannon Battle Cannon Launcher Improved Proton Missile Launcher Special Weapon Improved Remote Datajack Impact Weapon Heavy Hammer Special Melee Weapon Datajack Build | -11 -10 -10 -10 -7 -7 -5 -5 -5 -5 -4 -4 -4 ------- Run | Yrd Mat Min Sub Rec Scr Fac Upp Upp War Pro Fac Arm Slots Evolved 12 | . . . . . . 10 . . . . 2 . Power 1 | . . . . . . 1 . . . . . . Propulsion 3 | . . . . . . 2 . . . . 1 . Utility 6 | . . . . . . 6 . . . . . . Weapon 2 | . . . . . . 1 . . . . 1 . Parts Attached 182 | 7 25 10 24 1 13 44 3 1 29 8 14 3 Power 11 | 1 2 . 2 . 1 3 . . . 1 1 . Engine 9 | 1 2 . 2 . 1 2 . . . . 1 . Core 1 | . . . . . . 1 . . . . . . Reactor 1 | . . . . . . . . . . 1 . . Propulsion 28 | 2 6 . . . 5 8 . . 5 1 1 . Treads 20 | 2 4 . . . 4 7 . . 2 . 1 . Leg 4 | . . . . . . . . . 3 1 . . Wheel 4 | . 2 . . . 1 1 . . . . . . Hover . | . . . . . . . . . . . . . Flight . | . . . . . . . . . . . . . Utility 71 | 2 3 7 10 . 3 20 1 1 10 1 11 2 Device 43 | 1 1 4 6 . . 12 . 1 7 1 8 2 Storage 4 | 1 1 . . . . 1 . . 1 . . . Processor 2 | . . . . . . 2 . . . . . . Hackware 2 | . . . . . 1 . . . . . 1 . Protection 20 | . 1 3 4 . 2 5 1 . 2 . 2 . Artifact . | . . . . . . . . . . . . . Weapon 72 | 2 14 3 12 1 4 13 2 . 14 5 1 1 Energy Gun 20 | 1 6 . . . 1 3 . . 7 1 1 . Energy Cannon 9 | . . . 1 1 . 2 . . 4 . . 1 Ballistic Gun 23 | 1 8 2 3 . . 7 2 . . . . . Ballistic Cannon 2 | . . . 2 . . . . . . . . . Launcher 5 | . . 1 . . . . . . 2 2 . . Special Weapon 4 | . . . . . 1 1 . . . 2 . . Impact Weapon 8 | . . . 6 . 1 . . . 1 . . . Slashing Weapon . | . . . . . . . . . . . . . Piercing Weapon . | . . . . . . . . . . . . . Special Melee Weapon 1 | . . . . . 1 . . . . . . . Unidentified Prototypes 15 | . . . 1 . . 2 1 1 8 . 2 . Corrupted Parts 2 | . . . . . 1 . . . . 1 . . System Corruption 2 | . . . . . 1 . . . . 1 . . Parts Lost 18 | . 2 1 2 . 1 . . . 2 2 1 7 Power 3 | . . . 2 . . . . . . 1 . . Propulsion 4 | . . . . . 1 . . . . . 1 2 Utility 7 | . 1 . . . . . . . 1 1 . 4 Weapon 4 | . 1 1 . . . . . . 1 . . 1 Highest Loss Streak 4 | . 1 1 1 . 1 . . . 2 2 1 4 To Critical Strikes 2 | . . 1 . . . . . . . . 1 . Average Slot Usage (%) 87 | . 99 100 99 100 83 87 80 80 74 77 66 54 Engine 9 | . 14 14 13 14 10 7 5 5 4 3 2 3 Core 1 | . . . . . . 3 5 5 4 4 4 3 Treads 22 | . 26 28 28 28 27 17 15 15 11 8 4 3 Leg 2 | . . . . . . . . . 4 13 17 12 Device 9 | . 13 13 11 . . 13 20 20 17 17 16 13 Storage 11 | . 14 14 14 14 14 5 5 5 4 4 4 3 Processor 2 | . . . . . . 7 10 10 8 7 1 . Protection 7 | . . . 2 14 14 13 5 5 4 4 4 3 Energy Cannon 7 | . . . 12 15 10 1 . . . 3 . . Ballistic Gun 6 | . 25 27 3 . . 8 14 15 4 . . . Impact Weapon 3 | . . . 7 12 2 . . . 1 4 . . Peak Build Rating 173 | 6 8 9 19 19 24 109 106 109 157 153 173 163 Average Rating 48 | 4 7 8 14 19 17 77 105 108 128 152 163 120 On Entrance 66 | . 6 8 8 19 19 24 106 106 109 140 152 162 Naked Turns . | . . . . . . . . . . . . . Heaviest Build 113 | 12 50 48 60 65 65 104 104 99 111 104 113 106 Greatest Support 131 | 40 40 40 40 40 40 124 124 124 124 131 131 131 Greatest Overweight (x) 9 | . 2 1 1 1 4 9 . . 2 1 . 1 Average Overweight (x) . | . . 1 1 1 1 2 . . . . . . Largest Inventory Capacity 20 | 8 20 20 20 20 20 20 20 20 20 20 20 20 Average Capacity 19 | 7 18 20 20 20 20 20 20 20 20 20 20 17 Most Carried 20 | 6 10 11 20 20 20 20 20 20 20 20 20 20 Average Carried 17 | 3 8 10 18 19 19 18 19 19 19 19 18 17 Final Capacity 20 | 8 20 20 20 20 20 20 20 20 20 20 20 5 Final Carried 20 | 6 10 10 20 20 19 20 20 20 20 20 20 5 Class Distribution -------------------- 68% | Mutant 10% | Scavenger-Gunner 10% | Scavenger-Tank 8% | Scavenger-Mutant Dominant Class ---------------- Mutant | -10/Materials Mutant | -10/Mines Mutant | -10/Subcaves Mutant | -7/Recycling Mutant | -7/Scraptown Scavenger-Tank | -5/Factory Scavenger-Tank | -5/Upper Caves Scavenger-Gunner | -5/Upper Caves Scavenger-Gunner | -5/Warlord Scavenger-Mutant | -4/Proximity Caves Scavenger-Gunner | -4/Factory Scavenger-Gunner | -4/Armory Resources | -11 -10 -10 -10 -7 -7 -5 -5 -5 -5 -4 -4 -4 ----------- Run | Yrd Mat Min Sub Rec Scr Fac Upp Upp War Pro Fac Arm Matter Collected 3099 | 175 429 130 377 10 80 832 157 144 425 111 182 47 Remotely . | . . . . . . . . . . . . . Salvage Created 4703 | 56 420 94 288 121 . 1113 . . 1214 88 815 494 Parts 298 | 9 33 12 19 3 . 74 . . 51 12 59 26 Haulers Intercepted 1 | . 1 . . . . . . . . . . . Recyclers Shooed 4 | . 1 . . . . 1 . . . . 2 . Parts Field Recycled . | . . . . . . . . . . . . . Retrieved Matter . | . . . . . . . . . . . . . Parts Self-Destructed 62 | . . . 13 . . . 19 . . 30 . . Prevented 11 | . . . . . . . . . . 11 . . Kills | -11 -10 -10 -10 -7 -7 -5 -5 -5 -5 -4 -4 -4 ------- Run | Yrd Mat Min Sub Rec Scr Fac Upp Upp War Pro Fac Arm Combat Hostiles Destroyed 90 | . 10 9 3 1 . 16 . . 24 7 11 9 Melee 1 | . . . . . . . . . 1 . . . Guns 33 | . 8 6 1 . . 16 . . 1 . 1 . Cannons 11 | . . . 2 1 . . . . 4 . . 4 AOE 40 | . 2 3 . . . . . . 14 7 9 5 Classes Destroyed 22 | 1 6 . 2 2 . 3 . . 6 . 1 1 Worker 7 | . 2 . . . . 2 . . . . 3 . Builder 5 | . . . . . . . . . . . 5 . Tunneler 4 | 3 . . . . . 1 . . . . . . Hauler 1 | . 1 . . . . . . . . . . . Recycler 2 | . . . . 1 . 1 . . . . . . Mechanic 1 | . 1 . . . . . . . . . . . Operator 1 | . . . . . . 1 . . . . . . Watcher 5 | . 2 . . . . . . . . . 2 1 Swarmer 29 | . 6 9 . . . 4 . . . 7 3 . Saboteur 6 | . . . . . . . . . 6 . . . Grunt 20 | . 4 . . . . 2 . . 13 . 1 . Duelist 3 | . . . . . . . . . . . . 3 Protector 2 | . . . . . . . . . 1 . . 1 Sentry 5 | . . . . 1 . 2 . . . . 1 1 Demolisher 1 | . . . . . . . . . 1 . . . Specialist 1 | . . . . . . . . . 1 . . . Hunter 3 | . . . . . . 1 . . . . 1 1 Programmer 16 | . . . . . . 7 . . . . 6 3 Striker 1 | . . . . . . . . . 1 . . . Executioner 2 | . . . . . . . . . 2 . . . Artisan 2 | . . . 2 . . . . . . . . . Subdweller 7 | . . . 7 . . . . . . . . . Best Kill Streak 23 | 3 4 3 1 1 . 3 . . 23 5 7 4 Combat Bots Only 23 | . 3 3 1 1 . 3 . . 23 5 4 4 Max Kills in Single Turn 8 | 1 3 3 1 1 . 2 . . 3 3 8 1 Gunslinging 1 | . . . . . . 1 . . . . . . Exploded 3 | . 1 3 . . . . . . 3 3 3 1 Melee 1 | . . . . . . . . . 1 . . . Uniques/NPCs Destroyed . | . . . . . . . . . . . . . Combat | -11 -10 -10 -10 -7 -7 -5 -5 -5 -5 -4 -4 -4 -------- Run | Yrd Mat Min Sub Rec Scr Fac Upp Upp War Pro Fac Arm Hostile Shots Fired 650 | . 62 35 10 9 . 87 . . 137 39 98 173 Missed 227 | . 16 7 4 6 . 35 . . 53 18 30 58 Damage Taken 7722 | . 439 217 192 15 147 844 18 . 2001 305 1367 2177 Core 1500 | . 80 21 2 . . 35 . . 178 12 94 1078 Absorbed by Shields 373 | . . . . . . 141 7 . 109 116 . . Ignored by Resistances 12 | . . . . . . 12 . . . . . . Regen/Repaired (Parts) 417 | . 102 . . . 310 . . . 5 . . . Core Remaining (%) 78 | 100 . . . . 58 . . . . 77 . . Volleys Fired 223 | 5 52 17 11 1 . 53 8 . 37 5 14 20 Largest 3 | 1 2 2 2 2 . 3 3 . 2 1 1 1 Hottest 300 | 20 80 40 119 160 . 189 101 . 100 33 300 300 Shots Fired 397 | 5 96 33 17 2 . 141 22 1 39 5 16 20 Gun 320 | 5 96 32 7 . . 128 22 1 5 . 16 8 Cannon 52 | . . . 10 2 . 11 . . 17 . . 12 Launcher 22 | . . 1 . . . . . . 17 4 . . Special 3 | . . . . . . 2 . . . 1 . . Kinetic 227 | 5 64 32 11 . . 92 22 1 . . . . Thermal 79 | . . . 6 2 . 47 . . . . 16 8 Explosive 5 | . . 1 . . . . . . . 4 . . Electromagnetic 49 | . 32 . . . . . . . 17 . . . Entropic 34 | . . . . . . . . . 22 . . 12 Robot Hit Streak 20 | 5 6 4 7 4 . 19 6 . 4 3 20 11 Robot Miss Streak 7 | . 7 4 1 . . 4 1 1 7 1 6 3 Penetration Max 1 | . . . . . . . . . 1 . . 1 Secondary Targets 7 | . 3 1 . . . 3 . . . . . . Max Gunslinging Chain 1 | . 1 1 . . . 1 . . . . . . Shots Hit Robots 249 | 5 49 15 22 5 8 88 14 . 12 4 13 14 Core Hits 238 | 3 25 9 8 2 . 39 4 . 65 15 47 21 Critical Kills 5 | . . . 1 . . 4 . . . . . . Critical Parts Destroyed 13 | . . . 1 . . 4 5 . 3 . . . Critical Strikes 29 | . . . 3 . . 8 5 . 9 . . 4 Destroy 13 | . . . . . . 8 5 . . . . . Blast 1 | . . . 1 . . . . . . . . . Smash 2 | . . . 2 . . . . . . . . . Detonate 3 | . . . . . . . . . 3 . . . Sunder 10 | . . . . . . . . . 6 . . 4 Melee Attacks 68 | . . . 47 11 8 . . . 2 . . . Impact 60 | . . . 47 11 . . . . 2 . . . Slashing . | . . . . . . . . . . . . . Piercing . | . . . . . . . . . . . . . Sneak Attacks 19 | . . . 8 3 8 . . . . . . . Combat Hostiles . | . . . . . . . . . . . . . Follow-up Attacks . | . . . . . . . . . . . . . Damage Inflicted 13627 | 71 728 421 893 307 . 1755 100 . 4348 615 2486 1903 Guns 2914 | 66 615 203 63 . . 1579 100 . 193 . 68 27 Cannons 2191 | . . . 220 57 . 176 . . 770 . . 968 Explosions 7580 | . 105 197 . . . . . . 3385 615 2374 904 Melee 860 | . . . 610 250 . . . . . . . . Ramming 82 | 5 8 21 . . . . . . . . 44 4 Kinetic 1704 | 66 309 203 144 . . 882 100 . . . . . Thermal 6370 | . 105 157 139 57 . 873 . . 1666 . 2442 931 Explosive 655 | . . 40 . . . . . . . 615 . . Electromagnetic 2025 | . 306 . . . . . . . 1719 . . . Impact 860 | . . . 610 250 . . . . . . . . Slashing . | . . . . . . . . . . . . . Piercing . | . . . . . . . . . . . . . Entropic 1931 | . . . . . . . . . 963 . . 968 Highest Corruption 8 | . . . . . 1 6 6 6 6 1 6 8 Average Corruption 2 | . . . . . 1 2 6 6 6 1 5 6 Corruption Purged . | . . . . . . . . . . . . . Corruption Blocked . | . . . . . . . . . . . . . Effects 108 | . . . . . 21 16 22 25 1 . 12 11 Message Errors 25 | . . . . . 6 1 8 7 . . 2 1 Matter Fused 22 | . . . . . 6 4 1 6 . . 1 4 Heat Flow Errors 18 | . . . . . 4 5 2 3 1 . 3 . Energy Discharges 13 | . . . . . 4 . 3 1 . . 1 4 Parts Rejected 1 | . . . . . . 1 . . . . . . Data Loss (minor) 13 | . . . . . . . 5 4 . . 2 2 Data Loss (major) 8 | . . . . . . 4 . 3 . . 1 . Misfires 3 | . . . . . . . . 1 . . 2 . Alerts 2 | . . . . . 1 . 1 . . . . . Weapon Failures 3 | . . . . . . 1 2 . . . . . Overload Shots . | . . . . . . . . . . . . . Overflow Damage 542 | . . 29 222 70 . . . . 15 7 52 147 Projectiles 137 | . . . . . . . . . . . . 137 Explosions 113 | . . 29 . . . . . . 15 7 52 10 Melee 292 | . . . 222 70 . . . . . . . . Knockbacks 5 | . . . 4 1 . . . . . . . . Impact 5 | . . . 4 1 . . . . . . . . Kinetic . | . . . . . . . . . . . . . Secondary . | . . . . . . . . . . . . . Self-Inflicted Damage 570 | . . . . . . . . . 15 . 217 338 Shots 27 | . . . . . . . . . 1 . 10 16 Rammed 8 | 2 2 3 . . . . . . . . . 1 Targets Rammed 13 | 2 2 3 . . . . . . . . 5 1 Kicked 5 | . . . . . . . . . . . 5 . Crushed . | . . . . . . . . . . . . . Highest Temperature 581 | . 165 12 21 99 272 466 211 198 394 . 486 581 Average Temperature 147 | . 79 6 8 51 121 140 103 92 169 . 167 225 Received Heat Transfer 1063 | . 108 . 27 . . 45 . . 448 63 18 354 Effects 20 | . . . . . 1 2 . . 4 . 3 10 Shutdowns 5 | . . . . . . 1 . . 2 . . 2 Energy Bleed 5 | . . . . . 1 1 . . 1 . 2 . Interference 4 | . . . . . . . . . . . . 4 Matter Decay 4 | . . . . . . . . . 1 . 1 2 Short Circuit 1 | . . . . . . . . . . . . 1 Damage (minor) 1 | . . . . . . . . . . . . 1 Siege Activations . | . . . . . . . . . . . . . Robots Corrupted 9 | . . . 4 1 . . . . 4 . . . Combat Hostiles 4 | . . . . . . . . . 4 . . . Parts Fried 17 | . 2 . 4 2 . . . . 9 . . . Impact Corruptions 9 | . . . 6 3 . . . . . . . . Robots Melted 1 | . . . . . . . . . . . 1 . Combat Hostiles 1 | . . . . . . . . . . . 1 . Parts Melted 18 | . . . 1 . . 4 . . . . 10 3 Heat Transferred 7654 | . 250 200 185 74 . 1312 . . 1408 . 3066 1159 Parts Sabotaged 2 | . . . . . . . . . 2 . . . Parts Stolen . | . . . . . . . . . . . . . Parts Stripped . | . . . . . . . . . . . . . Power Chain Reactions 10 | . 2 . . . . . . . 8 . . . Alert | -11 -10 -10 -10 -7 -7 -5 -5 -5 -5 -4 -4 -4 ------- Run | Yrd Mat Min Sub Rec Scr Fac Upp Upp War Pro Fac Arm Peak Influence 673 | 15 246 174 . 127 . 361 . . . . 240 673 Initial 117 | . 9 11 . 69 . . . . . . . 117 Average 94 | 4 88 46 . 56 . 127 . . . . 86 379 Maximum Alert Level 2 | . 1 . . . . 1 . . . . 1 2 Low Security (%) 87 | 100 89 100 . 100 . 72 . . . . 95 18 Level 1 10 | . 10 . . . . 27 . . . . 4 36 Level 2 2 | . . . . . . . . . . . . 44 Level 3 . | . . . . . . . . . . . . . Level 4 . | . . . . . . . . . . . . . Level 5 . | . . . . . . . . . . . . . High Security . | . . . . . . . . . . . . . Max Security . | . . . . . . . . . . . . . Squads Dispatched 19 | . 3 . . . . 6 . . . . 6 4 Investigation 7 | . 2 . . . . 2 . . . . 2 1 Extermination 5 | . . . . . . 3 . . . . 2 . Reinforcement 7 | . 1 . . . . 1 . . . . 2 3 Assault . | . . . . . . . . . . . . . Garrison . | . . . . . . . . . . . . . Intercept . | . . . . . . . . . . . . . Searches Triggered . | . . . . . . . . . . . . . Construction Impeded 1 | . . . . . . . . . . . 1 . Haulers Reinforced 1 | . . . . . . . . . . . 1 . Active Scanning Responses . | . . . . . . . . . . . . . Cargo Convoy Interrupts 1 | . . . . . . 1 . . . . . . Stealth | -11 -10 -10 -10 -7 -7 -5 -5 -5 -5 -4 -4 -4 --------- Run | Yrd Mat Min Sub Rec Scr Fac Upp Upp War Pro Fac Arm Distress Signals 14 | . 5 . . . . 1 . . 2 . 2 4 Communications Jammed 5 | . . . . . . . . . . . . 5 Distress Signals 3 | . . . . . . . . . . . . 3 Times Spotted 223 | . 27 9 13 1 . 28 4 . 53 17 37 34 Peak Tracking Total 18 | . 5 3 2 1 . 5 3 . 18 9 7 16 Tactical Retreats 9 | . 1 . 1 . . 1 . . 1 . 1 4 Traps | -11 -10 -10 -10 -7 -7 -5 -5 -5 -5 -4 -4 -4 ------- Run | Yrd Mat Min Sub Rec Scr Fac Upp Upp War Pro Fac Arm Traps Triggered 3 | . . . 1 . 1 1 . . . . . . Indirectly . | . . . . . . . . . . . . . Trap Hack Attempts . | . . . . . . . . . . . . . Triggered . | . . . . . . . . . . . . . Disarmed . | . . . . . . . . . . . . . Reprogrammed . | . . . . . . . . . . . . . Reused . | . . . . . . . . . . . . . Traps Extracted . | . . . . . . . . . . . . . Installed 1 | . . . . . 1 . . . . . . . Triggered 23 | . . . . . . 2 . . 21 . . . Most Traps Carried 1 | . . . . . 1 . . . . . . . Machines | -11 -10 -10 -10 -7 -7 -5 -5 -5 -5 -4 -4 -4 ---------- Run | Yrd Mat Min Sub Rec Scr Fac Upp Upp War Pro Fac Arm Machines Disabled 21 | . . 5 3 1 . . . . 3 1 3 5 Max in Single Turn 5 | . . 5 1 1 . . . . 1 . 1 4 Garrison Access 1 | . . . . . . . . . . . 1 . Machines Repaired . | . . . . . . . . . . . . . Machines Dismantled . | . . . . . . . . . . . . . Machines Sabotaged . | . . . . . . . . . . . . . Overloaded Fab Kills . | . . . . . . . . . . . . . Hacking | -11 -10 -10 -10 -7 -7 -5 -5 -5 -5 -4 -4 -4 --------- Run | Yrd Mat Min Sub Rec Scr Fac Upp Upp War Pro Fac Arm Machines Accessed 44 | . 8 . 2 13 3 6 . . 5 . 5 2 Terminals 19 | . 6 . . 6 . 4 . . . . 2 1 Fabricators 2 | . . . . . . 2 . . . . . . Repair Stations 1 | . 1 . . . . . . . . . . . Recycling Units 10 | . 1 . . 7 . . . . . . 1 1 Scanalyzers 1 | . . . . . . . . . . . 1 . Garrison Access 1 | . . . . . . . . . . . 1 . Total Hacks 114 | . 29 . 5 24 14 11 . . 11 . 14 6 Successful 68 | . 15 . 5 11 14 2 . . 11 . 9 1 Failed 45 | . 13 . . 13 . 9 . . . . 5 5 Catastrophic 13 | . 1 . . 7 . 3 . . . . 2 . Database Lockouts 1 | . 1 . . . . . . . . . . . Manual 67 | . 25 . . 24 . 7 . . . . 5 6 Terminals 57 | . 24 . . 13 . 8 . . . . 8 4 Fabricators 3 | . . . . . . 3 . . . . . . Repair Stations 4 | . 4 . . . . . . . . . . . Recycling Units 15 | . 1 . . 11 . . . . . . 1 2 Scanalyzers 4 | . . . . . . . . . . . 4 . Garrison Access 1 | . . . . . . . . . . . 1 . Terminal Hacks 33 | . 2 . 5 . 14 . . . 11 . 1 . Record 19 | . . . 4 . 5 . . . 10 . . . Robot Analysis 10 | . 2 . . . 8 . . . . . . . Open Door 1 | . . . . . . . . . 1 . . . Unreport Threat 1 | . . . . . . . . . . . 1 . Derelict Proto ID Bank 2 | . . . 1 . 1 . . . . . . . Fabricator Hacks 1 | . . . . . . 1 . . . . . . Network Status 1 | . . . . . . 1 . . . . . . Repair Station Hacks 4 | . 4 . . . . . . . . . . . Scan Component 2 | . 2 . . . . . . . . . . . Repair 2 | . 2 . . . . . . . . . . . Recycling Unit Hacks . | . . . . . . . . . . . . . Scanalyzer 4 | . . . . . . . . . . . 4 . Insert Component 1 | . . . . . . . . . . . 1 . Analyze 3 | . . . . . . . . . . . 3 . Garrison Access Hacks 1 | . . . . . . . . . . . 1 . Seal Access 1 | . . . . . . . . . . . 1 . Unauthorized Hacks 25 | . 9 . . 11 . 1 . . . . 3 1 Terminals 17 | . 8 . . 6 . 1 . . . . 2 . Assimilate 1 | . 1 . . . . . . . . . . . Botnet 4 | . 1 . . 2 . . . . . . 1 . Operators 1 | . 1 . . . . . . . . . . . Skim 11 | . 5 . . 4 . 1 . . . . 1 . Fabricators . | . . . . . . . . . . . . . Repair Stations 2 | . . . . . . . . . . . 1 1 Recycling Units 6 | . 1 . . 5 . . . . . . . . Tunnel 6 | . 1 . . 5 . . . . . . . . Scrapoids 2 | . . . . . . . . . . . 1 1 Scanalyzers . | . . . . . . . . . . . . . Garrison Access . | . . . . . . . . . . . . . Data Cores Recovered 1 | . . . . . . 1 . . . . . . Used . | . . . . . . . . . . . . . Hacking Detections 25 | . 7 . . 7 . 6 . . . . 3 2 Full Trace Events 6 | . 1 . . 3 . 1 . . . . 1 . Feedback Events . | . . . . . . . . . . . . . Feedback Blocked . | . . . . . . . . . . . . . Robot Schematics Acquired . | . . . . . . . . . . . . . Robots Built . | . . . . . . . . . . . . . Authchips . | . . . . . . . . . . . . . Time . | . . . . . . . . . . . . . Total Robot Build Rating . | . . . . . . . . . . . . . Part Schematics Acquired 1 | . . . . . . . . . . . 1 . Parts Built . | . . . . . . . . . . . . . Authchips . | . . . . . . . . . . . . . Time . | . . . . . . . . . . . . . Total Part Build Rating . | . . . . . . . . . . . . . Parts Repaired 2 | . 2 . . . . . . . . . . . Time 52 | . 52 . . . . . . . . . . . Parts Recycled . | . . . . . . . . . . . . . Recycled Matter . | . . . . . . . . . . . . . Retrieved Matter . | . . . . . . . . . . . . . Retrieved Components . | . . . . . . . . . . . . . Parts Scanalyzed 1 | . . . . . . . . . . . 1 . Part Schematics Acquired 1 | . . . . . . . . . . . 1 . Parts Damaged . | . . . . . . . . . . . . . Bothacking | -11 -10 -10 -10 -7 -7 -5 -5 -5 -5 -4 -4 -4 ------------ Run | Yrd Mat Min Sub Rec Scr Fac Upp Upp War Pro Fac Arm Used RIF Installer . | . . . . . . . . . . . . . Robots Hacked 10 | . . . . . 8 2 . . . . . . Non-combat 2 | . . . . . 2 . . . . . . . Combat 6 | . . . . . 6 . . . . . . . Robot Hacks Applied 8 | . . . . . 8 . . . . . . . parse_system 8 | . . . . . 8 . . . . . . . Manual 2 | . . . . . . 2 . . . . . . Relay Couplers Released 1 | . . . . . . . . . . . 1 . Machine Destruction 1 | . . . . . . . . . . . 1 . Fabnet Peak Effective % . | . . . . . . . . . . . . . Robots Rewired 1 | . . . . . . . . . . . . 1 Allies Hacked 6 | . . . . . . 1 . . . . 5 . Hacks Repelled . | . . . . . . . . . . . . . Allies | -11 -10 -10 -10 -7 -7 -5 -5 -5 -5 -4 -4 -4 -------- Run | Yrd Mat Min Sub Rec Scr Fac Upp Upp War Pro Fac Arm Total Allies 75 | . . 3 11 . . 6 . 4 2 14 26 9 Largest Group 6 | . . 3 6 . . 3 . 4 4 4 6 6 Highest-Rated Group 378 | . . 40 114 . . 137 . 324 324 359 351 378 Highest-Rated Ally 137 | . . 16 20 . . 137 . 81 81 116 116 137 Total Orders 4 | . . . 2 . . . . . 1 1 . . STAY 1 | . . . 1 . . . . . . . . . FOLLOW 1 | . . . 1 . . . . . . . . . EXPLORE 1 | . . . . . . . . . . 1 . . RETURN 1 | . . . . . . . . . 1 . . . Ally Attacks 457 | . . . 75 . . 51 . . 56 58 102 115 Total Damage 10892 | . . . 1001 . . 980 . . 1632 1586 2442 3251 Kills 67 | . . . 10 . . 7 . . 12 11 16 11 Allies Corrupted 3 | . . . 3 . . . . . . . . . Allies Melted 3 | . . . 3 . . . . . . . . . Intel | -11 -10 -10 -10 -7 -7 -5 -5 -5 -5 -4 -4 -4 ------- Run | Yrd Mat Min Sub Rec Scr Fac Upp Upp War Pro Fac Arm Robot Analysis Total 10 | . 2 . . . 8 . . . . . . . Derelict Logs Recovered 11 | . . 1 1 . 4 . 2 2 . 1 . . Drone Launches 8 | . . . . . . 1 . . 3 1 3 . Drone Recoveries 7 | . . . . . . 1 . . 3 . 3 . Exploration | -11 -10 -10 -10 -7 -7 -5 -5 -5 -5 -4 -4 -4 ------------- Run | Yrd Mat Min Sub Rec Scr Fac Upp Upp War Pro Fac Arm Turns Passed 24685 | 100 1566 1777 4954 1553 6893 1628 978 773 1351 1704 1007 401 Spaces Moved 10649 | 47 527 626 1880 632 2833 681 561 457 650 804 733 218 Core 104 | 3 . . . . . . . . . . . 101 Treads 8300 | 44 489 626 1880 632 2812 453 561 457 346 . . . Legs 1958 | . . . . . . . . . 304 804 733 117 Wheels 287 | . 38 . . . 21 228 . . . . . . Hover . | . . . . . . . . . . . . . Flight . | . . . . . . . . . . . . . Fastest Speed 50 | 50 110 240 240 240 140 160 166 166 100 100 105 50 Average Speed 206 | 152 223 240 240 240 240 191 166 166 169 168 105 83 Slowest Speed 320 | 160 240 240 240 240 320 240 166 166 270 180 105 190 Overloaded Moves . | . . . . . . . . . . . . . Propulsion Burnouts . | . . . . . . . . . . . . . Robots Hopped . | . . . . . . . . . . . . . Cave-ins Triggered . | . . . . . . . . . . . . . Exploration Rate (%) 63 | 4 77 98 90 97 89 15 84 67 72 82 26 22 Regions Visited 12 Branch Regions 9 Pre-discovered Areas 8 | . 1 . 1 5 1 . . . . . . . Known Exits Taken 6 | . . 1 1 1 1 1 . . . . 1 . Unknown Exits Taken 6 | 1 1 . . . . . 1 1 1 1 . . Scrap Searched 28 | . . 2 7 . 10 . 3 3 . 3 . . Spaces Dug 15 | . . . 2 6 . 4 . . 3 . . . Terrain Destroyed 95 | . 4 9 2 6 . 8 . . 26 27 . 13 Melee 9 | . . . 2 6 . . . . 1 . . . Projectile 34 | . . . . . . 8 . . 13 . . 13 AOE 52 | . 4 9 . . . . . . 12 27 . . Terrain Rammed . | . . . . . . . . . . . . . Walls Destroyed . | . . . . . . . . . . . . . Machines Disabled . | . . . . . . . . . . . . . Actions | -11 -10 -10 -10 -7 -7 -5 -5 -5 -5 -4 -4 -4 --------- Run | Yrd Mat Min Sub Rec Scr Fac Upp Upp War Pro Fac Arm Total 12851 | 67 817 860 2221 650 2905 900 591 472 856 1151 942 419 Wait 1503 | . 201 204 232 . 23 78 13 13 105 328 158 148 Move 10638 | 47 526 625 1879 631 2832 680 560 456 649 803 732 218 Hop . | . . . . . . . . . . . . . Pick Up 85 | 6 6 1 16 3 12 17 2 1 8 4 9 . Fast Attach 50 | 6 3 . 2 . 6 15 1 . 14 1 2 . Attach 38 | 1 3 1 4 . 1 9 1 . 9 2 5 2 Detach 24 | 1 1 . 3 . 2 4 . . 7 . 3 3 Swap 94 | . 19 9 18 1 6 20 1 1 6 5 7 1 Drop 107 | . 4 . 9 3 14 24 4 1 19 3 7 19 Fire 223 | 5 52 17 11 1 . 53 8 . 37 5 14 20 Melee 68 | . . . 47 11 8 . . . 2 . . . Ram 1 | . . . . . . . . . . . . 1 Kick 5 | . . . . . . . . . . . 5 . Crush 6 | 1 2 3 . . . . . . . . . . Escape Stasis . | . . . . . . . . . . . . . Rewire 7 | . . . . . . . . . . . . 7 Trap 1 | . . . . . 1 . . . . . . . Miscellaneous 1 | . . . . . . . 1 . . . . . Route ------- -11/Scrapyard -10/Materials (discovered 4 exits: *Mat x3 / [*Min]) -10/Mines (discovered 4 exits: *Mat x2 / [*Exi] / *Sub) -10/Subcaves (discovered 3 exits: *Mat x2 / *Rec) -7/Recycling (discovered 2 exits: *Fac / *Scr) -7/Scraptown (discovered 2 exits: *Fac x2) -5/Factory (discovered 2 exits: *Upp x2) -5/Upper Caves -5/Upper Caves -5/Warlord -4/Proximity Caves -4/Factory (discovered 3 exits: Res / [*Upp] / *Arm) -4/Armory History --------- Turn | Location | Event 28 | -11/Scrapyard | Discovered new exit (range 15) 101 | -11/Scrapyard | Entered Materials 328 | -10/Materials | Build established: Mutant 425 | -10/Materials | Repaired Lgt. Treads 453 | -10/Materials | Repaired Lgt. Treads 530 | -10/Materials | Discovered new exit (range 12) 736 | -10/Materials | Discovered new exit (range 16) 1031 | -10/Materials | Discovered new exit (range 15) 1048 | -10/Materials | Central database locked down 1129 | -10/Materials | Loaded intel: 1 repair station location 1167 | -10/Materials | Discovered new exit (range 14) 1202 | -10/Materials | Learned location of 1 exit from Recycling 1264 | -10/Materials | Learned location of 2 exits from Subcaves 1301 | -10/Materials | Derelicts attacked the area 1390 | -10/Materials | Learned 2 Mines zone layouts 1428 | -10/Materials | Identified exit to Materials 1476 | -10/Materials | Learned 4 Recycling zone layouts 1667 | -10/Materials | Entered Mines 1668 | -10/Mines | Identified exit to Subcaves 1811 | -10/Mines | Assembled infested the area 2141 | -10/Mines | Discovered new exit (range 5) 2278 | -10/Mines | Learned 4 Materials zone layouts 2378 | -10/Mines | Received a Rocket Launcher from a helpful Derelict 2701 | -10/Mines | Discovered exit to Materials (range 8) 3000 | -10/Mines | Assisted by bots powering up and referring to "LRC-V3" 3034 | -10/Mines | Discovered exit to Materials (range 7) 3444 | -10/Mines | Entered Subcaves 3444 | -10/Subcaves | Accompanied by 3 allies 3445 | -10/Subcaves | Identified exit to Materials 3766 | -10/Subcaves | Shifting Twisted Machinery released Sub. Beam Cannon 4328 | -10/Subcaves | Visited 4L-MR0's lab 4356 | -10/Subcaves | Found Arachnoskeleton 4585 | -10/Subcaves | Visited Clippyterm 4592 | -10/Subcaves | Identified exit to Recycling 4592 | -10/Subcaves | Learned Factory fabricator intel 4843 | -10/Subcaves | Shifting Twisted Machinery released Battle Rifle 5147 | -10/Subcaves | Shifting Twisted Machinery released Sub. Machine Gun 5148 | -10/Subcaves | Shifting Twisted Machinery released Mak. Light Armor Plating 5308 | -10/Subcaves | Learned location of Zion (-7) 5308 | -10/Subcaves | Met a Zionite searching for "candidates" 5488 | -10/Subcaves | Visited triangular shrine 5503 | -10/Subcaves | Found Prototype Device 5503 | -10/Subcaves | Identified V3-11A's Pendant 5508 | -10/Subcaves | Befriended Subdweller 5907 | -10/Subcaves | Shifting Twisted Machinery released Battle Rifle 6063 | -10/Subcaves | Befriended Subdweller 6473 | -10/Subcaves | Befriended Subdweller 6564 | -10/Subcaves | A Subdweller sparked back to life 6568 | -10/Subcaves | Befriended Subdweller 6578 | -10/Subcaves | Befriended Subdweller 6583 | -10/Subcaves | Befriended Subdweller 7075 | -10/Subcaves | A swath of the cavern ceiling suddenly collapsed 7153 | -10/Subcaves | Befriended Subdweller 7158 | -10/Subcaves | Befriended Subdweller 7191 | -10/Subcaves | Ambushed by Subdweller buried in earth 7193 | -10/Subcaves | Befriended Subdweller 7201 | -10/Subcaves | Found Meta Core 7673 | -10/Subcaves | Befriended Subdweller 7673 | -10/Subcaves | Befriended Subdweller 8398 | -10/Subcaves | Entered Recycling 8399 | -7/Recycling | Identified exit to Scraptown 8400 | -7/Recycling | Identified exit to Factory 8400 | -7/Recycling | Murdered 4 allies 9891 | -7/Recycling | Scanned before Scraplab entrance 9925 | -7/Recycling | Entered Scraplab 9951 | -7/Recycling | Entered Scraptown 10359 | -7/Scraptown | Delivered V3-11A's Pendant to T0-NE2 in exchange for information 10547 | -7/Scraptown | Heard Great Nut preacher, LISTEN AND RECITE! 10654 | -7/Scraptown | Discovered exit to Factory (range 13) 10784 | -7/Scraptown | Scanned Subdweller tech in exchange for log data 10791 | -7/Scraptown | Learned location of Quarantine (-3) 10793 | -7/Scraptown | Learned Research garrison access intel 10796 | -7/Scraptown | Learned Factory emergency access door positions 10863 | -7/Scraptown | Visited Red Mages 10959 | -7/Scraptown | Visited Comm Corps 10978 | -7/Scraptown | Visited Bundlers 11164 | -7/Scraptown | Visited CR-KLE's Repair Center 11202 | -7/Scraptown | Visited Symbiants 11298 | -7/Scraptown | Visited The Evicted 11365 | -7/Scraptown | Visited Assassins FH 11413 | -7/Scraptown | Visited UFD Registry 11413 | -7/Scraptown | Registered with UFD as "Thunderbucket" 11466 | -7/Scraptown | Visited Supply Room 11502 | -7/Scraptown | Visited Junk Cannon Lab 11538 | -7/Scraptown | Visited LU-1G1's Boring Crew 11566 | -7/Scraptown | Visited Botcube Research 11607 | -7/Scraptown | Visited Derelict Rescue Squad 11684 | -7/Scraptown | Visited Science Testing Area 11722 | -7/Scraptown | Visited Abandonware Association 11746 | -7/Scraptown | Learned abandonware demo "SHUTEYE.EXE" 11746 | -7/Scraptown | Learned abandonware demo "TRNCOAT.EXE" 11814 | -7/Scraptown | Visited Science Guys 11895 | -7/Scraptown | Visited Analyses Database 12109 | -7/Scraptown | Delivered Scrap Shield to a Scientist 12738 | -7/Scraptown | Warned about trapping Scraptown 13645 | -7/Scraptown | Found Master Drone Bay 13656 | -7/Scraptown | Lost 4 allies 13831 | -7/Scraptown | CR-KLE repaired 5 parts 14164 | -7/Scraptown | Visited Junk Repository 15482 | -7/Scraptown | Found Botcube 16675 | -7/Scraptown | Found DRS Beacon 16839 | -7/Scraptown | Discovered exit to Factory (range 3) 16844 | -7/Scraptown | Entered Factory 16844 | -5/Factory | Evolved 10 slots: Power x1, Propulsion x2, Utility x6, Weapon x1 16845 | -5/Factory | Identified exit to Upper Caves 16847 | -5/Factory | Loaded intel: 6 fabricator locations 16979 | -5/Factory | Discovered exit to Upper Caves (range 5) 17041 | -5/Factory | Allied Derelicts emerged from ambush trap array 17167 | -5/Factory | Build established: Tank 17483 | -5/Factory | Attached Meta Core, gained temporary slots: Propulsion, Utility, Weapon 17562 | -5/Factory | Build established: Scavenger-Tank 17690 | -5/Factory | Cargo convoy interrupted 17909 | -5/Factory | Master Drone dominated H-71 Marshal. 18163 | -5/Factory | Master Drone dominated G-67 Veteran. 18168 | -5/Factory | Master Drone dominated G-50 Soldier. 18472 | -5/Factory | Entered Upper Caves 18474 | -5/Upper Caves | UFD Scientist delivered a prototype 18479 | -5/Upper Caves | Activated DRS Beacon 18482 | -5/Upper Caves | Found Prototype Protection 18484 | -5/Upper Caves | Identified Enh. Scrap Shield 18504 | -5/Upper Caves | Learned Factory trap positions 18709 | -5/Upper Caves | Learned location of 1 exit from Factory 19243 | -5/Upper Caves | Discovered new exit (range 15) 19450 | -5/Upper Caves | Entered another Upper Caves area 19645 | -5/Upper Caves | Prototype Device suddenly appears! 19658 | -5/Upper Caves | Found Prototype Device 19659 | -5/Upper Caves | Identified Amulet of Y3-NDR 19777 | -5/Upper Caves | Joined by bewildered Wizard 19777 | -5/Upper Caves | Joined by bewildered Wizard 19778 | -5/Upper Caves | Joined by bewildered Wizard 19798 | -5/Upper Caves | Joined by bewildered Wizard 19915 | -5/Upper Caves | Encountered a Warlord checkpoint 19946 | -5/Upper Caves | Build established: Scavenger-Gunner 19946 | -5/Upper Caves | Learned 8 Factory zone layouts 19962 | -5/Upper Caves | Learned 4 Factory zone layouts 20059 | -5/Upper Caves | Discovered new exit (range 3) 20223 | -5/Upper Caves | Entered Warlord 20223 | -5/Warlord | Accompanied by 4 allies 20278 | -5/Warlord | System corruption cleaned by Quarantine Array 20355 | -5/Warlord | Learned Testing emergency access door positions 20356 | -5/Warlord | Learned 4 Armory zone layouts 20356 | -5/Warlord | Learned 4 Command zone layouts 20358 | -5/Warlord | Learned Armory terminal intel 20358 | -5/Warlord | Learned Armory repair station intel 20358 | -5/Warlord | Learned Armory recycling unit intel 20358 | -5/Warlord | Learned Research repair station intel 20626 | -5/Warlord | Attached Arachnoskeleton, gained temporary slots: Propulsion x3 20645 | -5/Warlord | Found Prototype Energy Gun 20683 | -5/Warlord | Rebuked by Warlord 20708 | -5/Warlord | Warlord's base attacked by MAIN.C 20848 | -5/Warlord | Found Prototype Energy Cannon 20848 | -5/Warlord | Identified Vortex Driver 20859 | -5/Warlord | Found Prototype Energy Gun 20859 | -5/Warlord | Identified Vortex Shotgun 20868 | -5/Warlord | Found Prototype Energy Gun 20868 | -5/Warlord | Identified Vortex Rail 20872 | -5/Warlord | Found Vortex Rail 20884 | -5/Warlord | Found Vortex Shotgun 20889 | -5/Warlord | Found Vortex Driver 21054 | -5/Warlord | Found Prototype Reactor 21058 | -5/Warlord | Warlord forces counterattacked 21070 | -5/Warlord | Found Prototype Device 21070 | -5/Warlord | Identified Exp. Focal Shield 21187 | -5/Warlord | Spotted Striker 21192 | -5/Warlord | Allies destroyed Striker 21223 | -5/Warlord | Lost 3 allies 21229 | -5/Warlord | P-80 Master assimilated allied HD-QZS(g) 21331 | -5/Warlord | Spotted Executioner 21340 | -5/Warlord | Destroyed Executioner 21364 | -5/Warlord | Spotted Striker 21365 | -5/Warlord | Spotted Executioner 21383 | -5/Warlord | Warlord base infiltrated, sounded retreat 21383 | -5/Warlord | Destroyed Striker 21386 | -5/Warlord | Master Drone dominated G-67 Veteran. 21394 | -5/Warlord | Master Drone dominated G-50 Soldier. 21409 | -5/Warlord | Destroyed Executioner 21430 | -5/Warlord | Destroyed 23 combat bots 21445 | -5/Warlord | Build established: Scavenger-Mutant 21509 | -5/Warlord | Spotted Executioner 21510 | -5/Warlord | Spotted Striker 21561 | -5/Warlord | Discovered new exit (range 14) 21574 | -5/Warlord | Entered Proximity Caves 21575 | -4/Proximity Caves | Lost 4 allies 21637 | -4/Proximity Caves | Spotted B-86 Titan 21646 | -4/Proximity Caves | Joined by bewildered Wizard 21647 | -4/Proximity Caves | Joined by bewildered Wizard 21647 | -4/Proximity Caves | Joined by bewildered Wizard 21679 | -4/Proximity Caves | Joined by bewildered Wizard 21680 | -4/Proximity Caves | Joined by bewildered Wizard 21687 | -4/Proximity Caves | Master Drone dominated B-86 Titan. 21711 | -4/Proximity Caves | Lost 3 allies 21732 | -4/Proximity Caves | Joined by bewildered Wizard 21851 | -4/Proximity Caves | Learned Research stockpile data 22370 | -4/Proximity Caves | Received a Behemoth hack from an annoying Tinkerer 23044 | -4/Proximity Caves | Master Drone dominated G-67 Veteran. 23049 | -4/Proximity Caves | Master Drone dominated G-67 Veteran. 23140 | -4/Proximity Caves | Master Drone dominated G-67 Veteran. 23143 | -4/Proximity Caves | Master Drone dominated S-27 Virus. 23146 | -4/Proximity Caves | Master Drone dominated G-73 Enforcer. 23150 | -4/Proximity Caves | Master Drone dominated G-67 Veteran. 23152 | -4/Proximity Caves | Master Drone dominated G-67 Veteran. 23182 | -4/Proximity Caves | Lost 5 allies 23255 | -4/Proximity Caves | Discovered new exit (range 16) 23278 | -4/Proximity Caves | Entered Factory 23278 | -4/Factory | Accompanied by 1 ally 23278 | -4/Factory | Evolved 2 slots: Propulsion x1, Weapon x1 23279 | -4/Factory | Identified exit to Research 23280 | -4/Factory | Identified exit to Armory 23280 | -4/Factory | Identified Plasma Storm 23282 | -4/Factory | Loaded intel: 87 trap records 23316 | -4/Factory | Joined by bewildered Wizard 23317 | -4/Factory | Joined by bewildered Wizard 23413 | -4/Factory | Discovered new exit (range 14) 23429 | -4/Factory | Master Drone dominated Y-64 Sentinel. 23616 | -4/Factory | Master Drone dominated H-77 Assassin. 23619 | -4/Factory | Master Drone dominated H-77 Assassin. 23621 | -4/Factory | Build established: Scavenger-Gunner 23621 | -4/Factory | Master Drone dominated S-27 Virus. 23623 | -4/Factory | Master Drone dominated P-70 Sage. 23626 | -4/Factory | Master Drone dominated P-70 Sage. 23628 | -4/Factory | Master Drone dominated G-67 Veteran. 23637 | -4/Factory | Master Drone dominated G-67 Veteran. 23667 | -4/Factory | Lost 5 allies 23802 | -4/Factory | Master Drone dominated H-77 Assassin. 23810 | -4/Factory | Master Drone dominated H-77 Assassin. 23819 | -4/Factory | Master Drone dominated G-67 Veteran. 23824 | -4/Factory | Master Drone dominated G-67 Veteran. 23825 | -4/Factory | Master Drone dominated G-67 Veteran. 23828 | -4/Factory | Master Drone dominated Assassin 7c. 23842 | -4/Factory | Master Drone dominated P-70 Sage. 23877 | -4/Factory | Lost 5 allies 23991 | -4/Factory | Master Drone dominated G-67 Veteran. 23996 | -4/Factory | Master Drone dominated G-67 Veteran. 24000 | -4/Factory | Master Drone dominated G-67 Veteran. 24009 | -4/Factory | Master Drone dominated G-67 Veteran. 24024 | -4/Factory | Spotted B-86 Titan 24039 | -4/Factory | Lost 4 allies 24042 | -4/Factory | Master Drone dominated B-86 Titan. 24123 | -4/Factory | Scrapoids reinforcements arrived? 24285 | -4/Factory | Entered Armory 24285 | -4/Armory | Accompanied by 4 allies 24287 | -4/Armory | Loaded intel: 15 terminal locations 24288 | -4/Armory | Loaded intel: 2 repair station locations 24289 | -4/Armory | Loaded intel: 2 recycling unit locations 24295 | -4/Armory | Spotted B-86 Titan 24341 | -4/Armory | Lost 3 allies 24353 | -4/Armory | Master Drone dominated G-67 Veteran. 24359 | -4/Armory | Master Drone dominated B-86 Titan. 24440 | -4/Armory | Master Drone dominated H-71 Marshal. 24501 | -4/Armory | Scrapoids reinforcements arrived? 24550 | -4/Armory | Lost 3 parts (1n2u) 24631 | -4/Armory | Core integrity fell below 50% 24635 | -4/Armory | Lost 7 allies 24643 | -4/Armory | Core integrity fell below 20% 24653 | -4/Armory | Lost 4 parts (1n2u1w) 24686 | -4/Armory | Destroyed by L-61 Swordsman with Power Sword Last Messages --------------- 24626_ Prototype Reactor crushed and broken. 24627_ Dropped Hcp. Storage Unit. 24627_ Hcp. Storage Unit crushed and broken. 24627_ Dropped Mak. Transmission Jammer. 24627_ Mak. Transmission Jammer crushed and broken. 24630_ Acquired 47 matter. 24633_ Slammed into X-77 Beamer. 24637_ Slug penetrates Transfer Shaft. 24637_ Transfer Shaft disabled. 24637_ Slug penetrates Wall. 24641_ Penetrated by Slug. 24641_ Slug penetrates Wall. 24642_ Door malfunctions. 24653_ System corrupted: Matter fused (-5). 24667_ W-44 Eye sends out distress signal. 24669_ System corrupted: Energy discharge (-34). 24670_ Connecting with Terminal... 24677_ Attempting to rewire G-67 Veteran. 24683_ G-67 Veteran rewired. 24684_ Attempting to rewire G-67 Veteran. Map ----- +----------------------------------------------------+ | ?????????????????????????????????????????????????? | | ?????????????????????????????????????????????????? | | ?????????????????????????????????????????????????? | | ?????????????????????????????????????????????????? | | ?????????????????????????????????????????????????? | | ?????????????????????????????????????????????????? | | ?????????????????????????????????????????????????? | | ?????????????????????????????????????????????????? | | ?????????????????????????????????????????????????? | | ?????????????????????????????????????????????????? | | ?????????????????????????????????????????????????? | | ????????????????????????????????????? ?????????? | | ?????????????????????????"""????????? ????? | | ?????????????????????????"Y?????????? #??? | | ?????????????????????????"""????????? #??? | | ????????????????????????????????????# #??? | | ????????????????????????????????????# #??? | | ####?????????????????????????######## #??? | | ????????????????????????? #### | | ??????????????????????????# | | ??????????????????????????# | | ???????????????????######## """ | | ???????????????????# # """ | | ???????????????????#s"""" # "" """ | | ???????????????????#l ggl + "T "" | | ???????????????????# @ggp # "" "" | | ???????????????????#l"""" # | | ???????????????????# ? # | | ???????????????????######## ######## | | ??????????????????????????# #??????# | | ??????????????????????????# #??????# | | ??????????????????????????????#+##+#??????# | | ??????????????????????????????????????????# | | ??????????????????????????????????????????# | | ??????????????????????????????????????????# | | ??????????????????????????????????????????# | | ??????????????????????????????????????????# | | ??????????????????????????????????????????######## | | ?????????????????????????????????""T""???????????? | | ?????????????????????????????????"""""???????????? | | ?????????????????????????????????????????????????? | | ?????????????????????????????????????????????????? | | ?????????????????????????????????????????????????? | | ?????????????????????????????????????????????????? | | ?????????????????????????????????????????????????? | | ?????????????????????????????????????????????????? | | ?????????????????????????????????????????????????? | | ?????????????????????????????????????????????????? | | ?????????????????????????????????????????????????? | | ?????????????????????????????????????????????????? | +----------------------------------------------------+ Best States ------------- Heat Dissipation 78 Energy Generation 33 Energy Capacity 580 Matter Stores 300 Matter Capacity 600 Sight Range 16 Terrain Scan Density 210 Jamming Range 14 Armor Coverage 800 Resistance: TH 10 Evasion (%) 67 Recoil Reduction 4 Salvage Targeting 2 Offensive Hacking 14 Authchip Count 1 Item Schematics ----------------- Cmb. Linear Gravjet | -4/Factory | Scanalyzed Robot Schematics ------------------ None Fabricated ------------ Nothing Alien Tech Used ----------------- None Achievements -------------- None Challenges ------------ None Game ------ Seed ThermicAdvancedProcessor Manual? 0 Play Time 02:08:23 Cumulative 613.0 hours Start 2024.08.25 @ 10:45:16 End 2024.08.25 @ 14:20:01 Sessions 3 Manual Loads 0 Difficulty Rogue Special Mode None Game No. 668 Rogue 581 Adventurer 87 Explorer 0 Win Type - Total 36 Types 8/0/22/1/1/1/3/0/0 Lore% 93 Gallery% 93 Achievement% 80 Wizard Run 0 Options --------- Layout 0 ASCII 0 Keyboard 1 Movement Numpad Keybinds 0 Fullscreen 2 Font 16/SmallcapsGlow Map View 88x55 Zoom Use 0% Tactical HUD 1 Map Filters NONE Filters NONE Steam 1 RUN: 4265364d-8c23-45ef-bf33-46f9a2f59f7e